lending/lending_fUSD_20260102
["ID","MTS","AMOUNT","RATE_DAILY","PERIOD"]
[400336795,1767387205680,500.0,0.00017521,2]
[400336796,1767387205707,500.0,0.00016973,2]
[400336797,1767387205743,500.0,0.00017521,2]
[400336798,1767387216490,1000.0,0.00042972,30]
[400336799,1767387245602,150.0,0.00019178,2]
[400336800,1767387245630,250.0,0.00019726,2]
[400336801,1767387245972,900.0,0.00019726,2]
[400336802,1767387248325,500.0,0.00016973,2]
[400336803,1767387248375,585.69967803,0.00017521,2]
[400336804,1767387248568,600.50654369,0.00017521,2]
[400336805,1767387248655,500.0,0.00016973,2]
[400336806,1767387263212,1000.0,0.00042972,30]
[400336807,1767387401320,763.0,0.00016438,2]
[400336810,1767387524309,500.0,0.00017999,2]
[400336811,1767387576566,-300.0,0.00025399,10]
[400336812,1767387576589,-243.41131546,0.00025917,2]
[400336813,1767387606358,-6.58868454,0.00025917,2]
[400336814,1767387606382,-185.91580228,0.00025917,2]
[400336815,1767387724382,500.0,0.00016973,2]
[400336816,1767387724434,1000.0,0.00017521,2]
[400336817,1767387741442,-151.0,0.00024013,2]
[400336818,1767387741464,-92.80804689,0.00024013,2]
[400336819,1767387766052,1490.4,0.00014652,2]
[400336820,1767387766334,1490.4,0.00015423,2]
[400336821,1767387766585,1490.4,0.00016194,2]
[400336822,1767387766785,1490.4,0.00016965,2]
[400336823,1767387767208,1490.4,0.00017736,2]
[400336824,1767387767438,1490.4,0.00018508,2]
[400336825,1767387767640,1490.4,0.00019279,2]
[400336826,1767387771454,-969.94297533,0.0002005,2]
[400336827,1767387774665,-202.37378735,0.0002005,2]
[400336828,1767387774688,-5.05455839,0.0002005,2]
[400336829,1767387781675,-515.40246628,0.0002005,2]
[400336830,1767387781698,-128.43411625,0.00020821,2]
[400336831,1767387783280,300.0,0.00017973,2]
[400336832,1767387783308,500.0,0.00016973,2]
[400336833,1767387783338,500.0,0.00017521,2]
[400336834,1767387783824,-517.98211067,0.00020821,2]
[400336835,1767387789463,-820.62990924,0.00020821,2]
[400336836,1767387798043,-23.35386384,0.00020821,2]
[400336837,1767387798066,-223.4736911,0.00021592,2]
[400336838,1767387800644,-207.4,0.00021592,2]
[400336839,1767387806035,-166.93819676,0.00021592,2]
[400336840,1767387808724,-218.45570258,0.00021592,2]
[400336841,1767387812870,-281.54429759,0.00021592,2]
[400336842,1767387815053,-246.9263342,0.00021592,2]
[400336843,1767387821521,-145.66177777,0.00021592,2]
[400336844,1767387821544,-104.16335478,0.00022363,2]
[400336845,1767387825576,-211.84096424,0.00022363,2]
[400336846,1767387829215,-292.19829255,0.00022363,2]
[400336847,1767387833169,-333.9659742,0.00022363,2]
[400336848,1767387837543,-233.2957982,0.00022363,2]
[400336849,1767387839132,-308.87960017,0.00022363,2]
[400336850,1767387841348,-6.05601586,0.00022363,2]
[400336851,1767387841372,-160.60398414,0.00022903,2]
[400336852,1767387845954,-89.39601586,0.00022903,2]
[400336853,1767387845979,-181.61777627,0.00023135,2]
[400336854,1767387846394,192.89183831,0.00016973,2]
[400336855,1767387847513,-641.49620787,0.00023135,2]
[400336856,1767387853070,-393.95311366,0.00023135,2]
[400336857,1767387855319,-273.3329022,0.00023135,2]
[400336858,1767387855342,-28.6670978,0.00023191,2]
[400336859,1767387861113,-257.36,0.00023044,2]
[400336860,1767387861135,-72.31079238,0.00023044,2]
[400336861,1767387863079,-78.68920762,0.00023044,2]
[400336862,1767387863101,-136.7029022,0.00023191,2]
[400336863,1767387863125,-83.91664888,0.00023906,2]
[400336864,1767387865232,-200.0,0.00023906,2]
[400336875,1767388231520,-1206.48335112,0.00023906,2]
[400336876,1767388231530,-5352.98123555,0.00024628,2]
[400336877,1767388231542,-2098.68876445,0.00024628,2]
[400336878,1767388231552,-1490.4,0.00024677,2]
[400336879,1767388231562,-151.0,0.00024962,2]
[400336880,1767388231571,-151.0,0.00024998,2]
[400336881,1767388231580,-151.0,0.00025033,2]
[400336882,1767388231589,-300.0,0.00025399,10]
[400336883,1767388231599,-250.0,0.00025401,2]
[400336884,1767388231609,-1490.4,0.00025448,2]
[400336885,1767388231619,-1490.4,0.00026219,2]
[400336886,1767388231629,-250.0,0.00026296,2]
[400336887,1767388231639,-962.42264021,0.00026989,2]
[400336888,1767388231651,-237.57735979,0.00026989,2]
[400336889,1767388231660,-1490.4,0.0002699,2]
[400336890,1767388231670,-300.0,0.00027577,10]
[400336891,1767388231679,-7274.83,0.00027596,2]
[400336892,1767388231689,-1490.4,0.00027761,2]
[400336893,1767388231698,-166.66,0.00027839,30]
[400336894,1767388231707,-150.99,0.00028203,2]
[400336895,1767388231716,-9999.99,0.00028203,2]
[400336896,1767388231726,-1600.0,0.00028324,2]
[400336897,1767388231735,-8164.08232894,0.00028325,2]
[400336898,1767388231744,-298.0,0.00028336,2]
[400336899,1767388231754,-500.0,0.00028368,2]
[400336900,1767388231763,-225.88979561,0.00028368,2]
[400336901,1767388231773,-500.0,0.00028368,2]
[400336902,1767388231782,-359.00591333,0.00028368,2]
[400336903,1767388231792,-287.84231446,0.00028368,2]
[400336904,1767388231801,-500.0,0.00028368,2]
[400336905,1767388231811,-500.0,0.00028368,2]
[400336906,1767388231820,-500.0,0.00028368,2]
[400336907,1767388231829,-500.0,0.00028368,2]
[400336908,1767388231839,-500.0,0.00028368,2]
[400336909,1767388231849,-500.0,0.00028368,2]
[400336910,1767388231858,-500.0,0.00028368,2]
[400336911,1767388231867,-500.0,0.00028368,2]
[400336912,1767388231876,-500.0,0.00028368,2]
[400336913,1767388231885,-500.0,0.00028368,2]
[400336914,1767388231895,-500.0,0.00028368,2]
[400336915,1767388231904,-500.0,0.00028368,2]
[400336916,1767388231913,-500.0,0.00028368,2]
[400336917,1767388231922,-500.0,0.00028368,2]
[400336918,1767388231931,-500.0,0.00028368,2]
[400336919,1767388231940,-500.0,0.00028368,2]
[400336920,1767388231950,-500.0,0.00028368,2]
[400336921,1767388231959,-287.52788531,0.00028368,2]
[400336922,1767388231969,-500.0,0.00028368,2]
[400336923,1767388231978,-500.0,0.00028368,2]
[400336924,1767388231987,-500.0,0.00028368,2]
[400336925,1767388231997,-500.0,0.00028368,2]
[400336926,1767388232006,-532.16423245,0.00028368,2]
[400336927,1767388232016,-500.0,0.00028368,2]
[400336928,1767388232025,-500.0,0.00028368,2]
[400336929,1767388232034,-500.0,0.00028368,2]
[400336930,1767388232043,-261.95860917,0.00028368,2]
[400336931,1767388232053,-500.0,0.00028368,2]
[400336932,1767388232062,-500.0,0.00028368,2]
[400336933,1767388232071,-500.0,0.00028368,2]
[400336934,1767388232080,-500.0,0.00028368,2]
[400336935,1767388232089,-480.89558731,0.00028368,2]
[400336936,1767388232100,-500.0,0.00028368,2]
[400336937,1767388232109,-158.12285692,0.00028368,2]
[400336938,1767388232118,-45984.72699677,0.00028369,2]
[400336939,1767388232129,-19798.04312545,0.00028369,2]
[400336940,1767388232140,-9697.58523293,0.00028369,2]
[400336941,1767388232151,-4835.2996689,0.00028369,2]
[400336942,1767388232162,-1104.82449094,0.00028369,2]
[400336943,1767388232174,-1247.39962148,0.00028369,2]
[400336944,1767388232210,-1446.7295,0.00028369,2]
[400336969,1767388237586,-4914.60700327,0.00028369,2]
[400336970,1767388237598,-1088.48741485,0.00028369,2]
[400336971,1767388237609,-2416.60558604,0.00028369,2]
[400336972,1767388237621,-911.50415481,0.00028369,2]
[400336973,1767388237632,-899.37350812,0.00028369,2]
[400336974,1767388237643,-251.00000008,0.00028369,2]
[400336981,1767388239975,-1.7e-07,0.00028369,2]
[400336982,1767388239986,-795.93,0.00028369,2]
[400336983,1767388239998,-6258.7835539,0.00028369,2]
[400336984,1767388240009,-303.01433204,0.00028369,2]
[400336985,1767388240020,-2519.00247955,0.00028369,2]
[400336986,1767388240032,-857.81402166,0.00028369,2]
[400336987,1767388240067,-894669.26930904,0.00028369,2]
[400336989,1767388240077,-166.66,0.00028425,30]
[400336991,1767388240087,-1441.23,0.00028446,2]
[400336992,1767388240096,-3737.53,0.00028469,2]
[400336993,1767388240105,-1490.4,0.00028533,2]
[400336994,1767388240114,-220.94,0.00028636,2]
[400336995,1767388240123,-165.37,0.00028989,2]
[400336996,1767388240133,-1393.7,0.00029,2]
[400336997,1767388240143,-166.66,0.00029011,30]
[400336998,1767388240152,-168.0,0.00029256,2]
[400336999,1767388240161,-200.0,0.00029281,2]
[400337000,1767388240171,-7226.3,0.00029284,2]
[400337001,1767388240180,-1490.4,0.00029304,2]
[400337002,1767388240189,-1680.0,0.00029308,2]
[400337003,1767388240198,-159.41,0.00029331,2]
[400337004,1767388240207,-1226.76,0.00029351,2]
[400337005,1767388240217,-5000.0,0.00029483,2]
[400337006,1767388240227,-1000.0,0.00029575,2]
[400337007,1767388240236,-166.66,0.00029597,30]
[400337008,1767388240246,-168.0,0.000296,2]
[400337009,1767388240255,-151.87311279,0.00029784,2]
[400337010,1767388240265,-168.0,0.00029905,2]
[400337011,1767388240274,-8164.0823289,0.00029943,2]
[400337012,1767388240284,-300.0,0.00029999,10]
[400337013,1767388240293,-300.0,0.00030129,10]
[400337014,1767388240303,-166.66,0.00030183,30]
[400337015,1767388240316,-220.94,0.00030226,2]
[400337016,1767388240326,-168.0,0.0003023,2]
[400337017,1767388240335,-168.0,0.00030393,2]
[400337018,1767388240346,-2000.0,0.000304,2]
[400337019,1767388240357,-2500.0,0.000305,2]
[400337020,1767388240366,-168.0,0.00030588,2]
[400337021,1767388240376,-43273.09713837,0.00030598,2]
[400337022,1767388240387,-166.66,0.00030769,30]
[400337023,1767388240397,-168.0,0.00030821,2]
[400337024,1767388240406,-200.0,0.00030855,2]
[400337025,1767388240416,-168.0,0.00030935,2]
[400337026,1767388240426,-168.0,0.00031166,2]
[400337027,1767388240436,-168.0,0.00031373,2]
[400337028,1767388240446,-8164.0823289,0.00031561,2]
[400337029,1767388240456,-250.0,0.00031587,2]
[400337030,1767388240466,-220.94,0.00031817,2]
[400337031,1767388240475,-2351.0,0.00031825,3]
[400337032,1767388240485,-168.0,0.00031958,2]
[400337033,1767388240495,-168.0,0.0003199,2]
[400337034,1767388240505,-235.84568341,0.00032614,2]
[400337035,1767388240515,-1067.95132778,0.00032623,15]
[400337036,1767388240524,-1018.78557236,0.00032623,15]
[400337037,1767388240534,-1067.95132778,0.00032623,15]
[400337038,1767388240543,-1067.95132778,0.00032623,15]
[400337039,1767388240553,-370734.86,0.00032624,2]
[400337040,1767388240562,-854.85371955,0.0003287,2]
[400337041,1767388240572,-8164.0823289,0.00033178,2]
[400337042,1767388240581,-304.53,0.000334,14]
[400337043,1767388240590,-220.94,0.00033408,2]
[400337044,1767388240600,-1355.0,0.000341,2]
[400337045,1767388240610,-854.85371951,0.00034539,2]
[400337046,1767388240619,-278.0,0.00034558,3]
[400337047,1767388240629,-151.87311279,0.00034748,2]
[400337048,1767388240639,-165.37,0.00034787,2]
[400337049,1767388240649,-8164.0823289,0.00034796,2]
[400337050,1767388240658,-220.94,0.00034999,2]
[400337051,1767388240668,-1879.093,0.00035247,41]
[400337052,1767388240677,-302.31,0.000362,14]
[400337053,1767388240687,-854.85371951,0.00036208,2]
[400337054,1767388240697,-7451.67,0.00036409,2]
[400337055,1767388240706,-8164.0823289,0.00036414,2]
[400337056,1767388240716,-220.94,0.0003659,2]
[400337057,1767388240726,-3227.3413116,0.0003712,2]
[400337058,1767388240735,-6495.8046837,0.00037162,2]
[400337059,1767388240744,-2872.527794,0.00037162,2]
[400337060,1767388240753,-3795.0,0.00037168,5]
[400337061,1767388240762,-174.41,0.00037459,14]
[400337062,1767388240772,-1355.09942246,0.000378,2]
[400337063,1767388240781,-854.85371951,0.00037878,2]
[400337064,1767388240790,-8164.0823289,0.00038032,2]
[400337065,1767388240799,-200.0,0.0003817,2]
[400337066,1767388240809,-207.4,0.0003817,2]
[400337067,1767388240822,-215.0738,0.0003817,2]
[400337068,1767388240831,-223.0315306,0.0003817,2]
[400337069,1767388240841,-231.28369723,0.0003817,2]
[400337070,1767388240851,-239.84119403,0.0003817,2]
[400337071,1767388240861,-248.71531821,0.0003817,2]
[400337072,1767388240870,-257.91778498,0.0003817,2]
[400337073,1767388240880,-267.46074303,0.0003817,2]
[400337074,1767388240889,-277.35679052,0.0003817,2]
[400337075,1767388240898,-220.94,0.00038181,2]
[400337076,1767388240907,-150.0,0.00038466,7]
[400337077,1767388240917,-150.0,0.00038466,7]
[400337078,1767388240927,-150.0,0.00038466,7]
[400337079,1767388240937,-150.0,0.00038466,7]
[400337080,1767388240947,-150.44068196,0.00038466,7]
[400337081,1767388240956,-150.0,0.00038466,7]
[400337082,1767388240965,-300.0,0.00038678,2]
[400337083,1767388240975,-300.0,0.00038678,2]
[400337084,1767388240985,-303.85501722,0.00038678,2]
[400337085,1767388240995,-300.0,0.00038678,2]
[400337086,1767388241004,-300.0,0.00038678,2]
[400337087,1767388241013,-595.88867019,0.00038678,2]
[400337088,1767388241022,-364.48459935,0.00038678,2]
[400337089,1767388241032,-300.0,0.00038678,2]
[400337090,1767388241042,-300.0,0.00038678,2]
[400337091,1767388241051,-300.0,0.00038678,2]
[400337092,1767388241060,-300.0,0.00038678,2]
[400337093,1767388241070,-300.0,0.00038678,2]
[400337094,1767388241079,-300.0,0.00038678,2]
[400337095,1767388241088,-303.47175408,0.00038678,2]
[400337096,1767388241104,-300.0,0.00038678,2]
[400337097,1767388241119,-578.04560059,0.00038678,2]
[400337098,1767388241128,-300.0,0.00038678,2]
[400337099,1767388241137,-300.0,0.00038678,2]
[400337100,1767388241146,-300.0,0.00038678,2]
[400337101,1767388241156,-300.0,0.00038678,2]
[400337102,1767388241165,-300.0,0.00038678,2]
[400337103,1767388241174,-300.0,0.00038678,2]
[400337104,1767388241183,-615.94778257,0.00038678,2]
[400337105,1767388241192,-304.64549813,0.00038678,2]
[400337106,1767388241202,-300.0,0.00038678,2]
[400337107,1767388241211,-300.0,0.00038678,2]
[400337108,1767388241221,-300.0,0.00038678,2]
[400337109,1767388241230,-300.0,0.00038678,2]
[400337110,1767388241239,-300.0,0.00038678,2]
[400337111,1767388241250,-303.85501722,0.00038678,2]
[400337112,1767388241259,-300.0,0.00038678,2]
[400337113,1767388241270,-300.0,0.00038678,2]
[400337114,1767388241280,-595.88867019,0.00038678,2]
[400337115,1767388241289,-364.48459935,0.00038678,2]
[400337116,1767388241299,-300.0,0.00038678,2]
[400337117,1767388241309,-300.0,0.00038678,2]
[400337118,1767388241320,-300.0,0.00038678,2]
[400337119,1767388241329,-300.0,0.00038678,2]
[400337120,1767388241339,-300.0,0.00038678,2]
[400337121,1767388241351,-300.0,0.00038678,2]
[400337122,1767388241360,-303.47175408,0.00038678,2]
[400337123,1767388241371,-300.0,0.00038678,2]
[400337124,1767388241380,-578.04560059,0.00038678,2]
[400337125,1767388241391,-300.0,0.00038678,2]
[400337126,1767388241400,-300.0,0.00038678,2]
[400337127,1767388241409,-300.0,0.00038678,2]
[400337128,1767388241418,-300.0,0.00038678,2]
[400337129,1767388241428,-300.0,0.00038678,2]
[400337130,1767388241438,-300.0,0.00038678,2]
[400337131,1767388241447,-615.94778257,0.00038678,2]
[400337132,1767388241456,-304.64549813,0.00038678,2]
[400337133,1767388241465,-300.0,0.00038678,2]
[400337134,1767388241474,-300.0,0.00038678,2]
[400337135,1767388241483,-300.0,0.00038678,2]
[400337136,1767388241492,-150.0,0.000392,30]
[400337137,1767388241502,-302.31,0.000392,14]
[400337138,1767388241511,-287.61899177,0.00039539,2]
[400337139,1767388241522,-854.85371951,0.00039547,2]
[400337140,1767388241531,-2000.0,0.000396,2]
[400337141,1767388241540,-8164.0823289,0.00039649,2]
[400337142,1767388241549,-151.87311279,0.00039712,2]
[400337143,1767388241559,-220.94,0.00039771,2]
[400337144,1767388241567,-508.0,0.00039985,2]
[400337145,1767388241577,-1000.0,0.000403,7]
[400337146,1767388241586,-174.41,0.0004038,14]
[400337147,1767388241596,-298.26089446,0.00040908,2]
[400337148,1767388241606,-167.04,0.00041046,2]
[400337149,1767388241621,-999.0,0.00041095,120]
[400337150,1767388241631,-293.76970744,0.00041096,2]
[400337151,1767388241640,-179.65785517,0.00041096,108]
[400337152,1767388241650,-508.0,0.00041096,10]
[400337153,1767388241659,-613.0,0.00041119,2]
[400337154,1767388241670,-1328.0,0.00041119,2]
[400337155,1767388241681,-3600.121,0.00041119,2]
[400337156,1767388241691,-1403.0,0.00041119,2]
[400337157,1767388241702,-1265.0,0.00041119,2]
[400337158,1767388241712,-433.0,0.00041119,2]
[400337159,1767388241721,-1199.0,0.00041119,2]
[400337160,1767388241730,-913.0,0.00041119,2]
[400337161,1767388241741,-4814.0,0.00041119,2]
[400337162,1767388241749,-2433.0,0.00041119,2]
[400337163,1767388241759,-387.477,0.00041119,2]
[400337164,1767388241767,-854.85371951,0.00041216,2]
[400337165,1767388241777,-8164.0823289,0.00041267,15]
[400337166,1767388241786,-600.0,0.0004133,60]
[400337167,1767388241794,-298.29040107,0.0004133,60]
[400337168,1767388241803,-500.0,0.0004133,60]
[400337169,1767388241812,-832.0,0.00041331,11]
[400337170,1767388241821,-1000.0,0.0004134,2]
[400337171,1767388241830,-220.94,0.00041362,2]
[400337172,1767388241839,-832.0,0.00041372,11]
[400337173,1767388241848,-829.0,0.00041631,11]
[400337174,1767388241857,-1144.93687453,0.0004167,7]
[400337175,1767388241866,-831.0,0.00041675,11]
[400337176,1767388241876,-150.0,0.00041693,30]
[400337177,1767388241885,-1449.4099393,0.00041871,2]
[400337178,1767388241894,-600.0,0.00041878,60]
[400337179,1767388241903,-481.83,0.00042,30]
[400337180,1767388241912,-660.52,0.00042,30]
[400337181,1767388241921,-660.52,0.00042,30]
[400337182,1767388241930,-660.52,0.00042,30]
[400337183,1767388241939,-482.01,0.00042,30]
[400337184,1767388241948,-482.01,0.00042,30]
[400337185,1767388241957,-660.52,0.00042,30]
[400337186,1767388241966,-660.52,0.00042,30]
[400337187,1767388241975,-482.01,0.00042,30]
[400337188,1767388241984,-660.52,0.00042,30]
[400337189,1767388241993,-482.01,0.00042,30]
[400337190,1767388242002,-482.01,0.00042,30]
[400337191,1767388242011,-660.52,0.00042,30]
[400337192,1767388242020,-482.01,0.00042,30]
[400337193,1767388242029,-660.52,0.00042,30]
[400337194,1767388242038,-482.01,0.00042,30]
[400337195,1767388242047,-660.52,0.00042,30]
[400337196,1767388242056,-33508.79676395,0.00042,4]
[400337197,1767388242065,-151.59,0.00042137,30]
[400337198,1767388242074,-1306.7,0.00042137,30]
[400337199,1767388242084,-356.98,0.00042137,30]
[400337200,1767388242097,-150.0,0.00042137,30]
[400337201,1767388242107,-150.0,0.00042137,30]
[400337202,1767388242117,-150.0,0.00042137,30]
[400337203,1767388242127,-150.0,0.00042137,30]
[400337204,1767388242138,-999.0,0.00042191,120]
[400337205,1767388242149,-302.31,0.000422,14]
[400337206,1767388242159,-508.0,0.00042208,10]
[400337207,1767388242168,-309.29654756,0.00042277,2]
[400337208,1767388242177,-1632.3679,0.000423,2]
[400337209,1767388242187,-600.0,0.00042426,60]
[400337210,1767388242196,-500.0,0.00042426,60]
[400337211,1767388242205,-2114.30348,0.0004253,120]
[400337212,1767388242215,-2114.30348,0.0004253,120]
[400337213,1767388242224,-2114.30348,0.0004253,120]
[400337214,1767388242234,-2114.30349,0.0004253,120]
[400337215,1767388242243,-2114.30348,0.0004253,120]
[400337216,1767388242252,-150.0,0.00042658,60]
[400337217,1767388242262,-150.0,0.00042658,60]
[400337218,1767388242272,-500.0,0.00042658,60]
[400337219,1767388242283,-500.0,0.00042658,60]
[400337220,1767388242293,-150.0,0.00042658,60]
[400337221,1767388242302,-254.49344309,0.00042658,60]
[400337222,1767388242313,-502.0,0.00042658,60]
[400337223,1767388242323,-150.0,0.00042658,120]
[400337224,1767388242332,-500.0,0.00042658,60]
[400337225,1767388242342,-196.80252033,0.00042658,60]
[400337226,1767388242352,-500.0,0.00042658,30]
[400337227,1767388242361,-150.0,0.00042658,60]
[400337228,1767388242372,-500.0,0.00042658,30]
[400337229,1767388242382,-500.0,0.00042658,30]
[400337230,1767388242391,-500.0,0.00042658,30]
[400337231,1767388242400,-500.0,0.00042658,30]
[400337232,1767388242410,-500.0,0.00042658,30]
[400337233,1767388242419,-500.0,0.00042658,30]
[400337234,1767388242429,-500.0,0.00042658,2]
[400337235,1767388242438,-500.0,0.00042658,60]
[400337236,1767388242448,-500.0,0.00042658,60]
[400337237,1767388242457,-199.32717415,0.00042658,60]
[400337238,1767388242467,-500.0,0.00042658,60]
[400337239,1767388242476,-150.0,0.00042658,2]
[400337240,1767388242485,-399.83079592,0.00042737,2]
[400337241,1767388242494,-167.04,0.00042739,2]
[400337242,1767388242503,-150.0,0.0004274,30]
[400337243,1767388242512,-162.80268362,0.0004274,30]
[400337244,1767388242522,-150.0,0.0004274,30]
[400337245,1767388242534,-159.79234636,0.0004274,30]
[400337246,1767388242543,-2000.0,0.00042759,3]
[400337247,1767388242552,-2000.0,0.00042759,3]
[400337248,1767388242562,-1000.0,0.0004279,30]
[400337249,1767388242571,-150.0,0.00042795,60]
[400337250,1767388242580,-500.0,0.00042795,60]
[400337251,1767388242589,-500.0,0.00042795,60]
[400337252,1767388242598,-150.0,0.00042795,60]
[400337253,1767388242608,-502.0,0.00042795,60]
[400337254,1767388242617,-150.0,0.00042795,120]
[400337255,1767388242626,-500.0,0.00042795,60]
[400337256,1767388242635,-500.0,0.00042795,2]
[400337257,1767388242644,-500.0,0.00042795,60]
[400337258,1767388242653,-500.0,0.00042795,60]
[400337259,1767388242662,-500.0,0.00042795,60]
[400337260,1767388242672,-160.6798625,0.00042873,2]
[400337261,1767388242682,-854.85371951,0.00042885,9]
[400337262,1767388242692,-8164.0823289,0.00042885,15]
[400337263,1767388242703,-279.77082708,0.00042885,2]
[400337264,1767388242713,-199.6,0.000429,27]
[400337265,1767388242723,-253.0,0.000429,41]
[400337266,1767388242732,-323.4070718,0.00042922,2]
[400337267,1767388242744,-800.0,0.00042926,16]
[400337268,1767388242753,-800.0,0.00042926,16]
[400337269,1767388242762,-800.0,0.00042926,16]
[400337270,1767388242771,-800.0,0.00042926,16]
[400337271,1767388242781,-800.0,0.00042926,16]
[400337272,1767388242790,-800.0,0.00042926,16]
[400337273,1767388242800,-800.0,0.00042926,16]
[400337274,1767388242811,-800.0,0.00042926,16]
[400337275,1767388242822,-200.0,0.00042932,60]
[400337276,1767388242831,-638.11163793,0.00042932,60]
[400337277,1767388242840,-215.65062607,0.00042932,60]
[400337278,1767388242849,-150.0,0.00042932,60]
[400337279,1767388242859,-502.0,0.00042932,60]
[400337280,1767388242868,-168.71118852,0.00042932,120]
[400337281,1767388242878,-500.0,0.00042932,60]
[400337282,1767388242887,-500.0,0.00042932,2]
[400337283,1767388242896,-500.0,0.00042932,60]
[400337284,1767388242906,-500.0,0.00042932,60]
[400337285,1767388242916,-500.0,0.00042932,60]
[400337286,1767388242925,-3155.0,0.0004294,120]
[400337287,1767388242934,-151.0,0.00042952,120]
[400337288,1767388242944,-220.94,0.00042953,2]
[400337289,1767388242953,-2114.30349,0.00042955,120]
[400337290,1767388242962,-2114.30348,0.00042955,120]
[400337291,1767388242971,-2114.30349,0.00042955,120]
[400337292,1767388242981,-2114.30348,0.00042955,120]
[400337293,1767388242991,-2114.30348,0.00042955,120]
[400337294,1767388243000,-660.52,0.00042959,30]
[400337295,1767388243009,-660.52,0.00042959,30]
[400337296,1767388243018,-660.52,0.00042959,30]
[400337297,1767388243027,-482.01,0.00042959,30]
[400337298,1767388243037,-660.52,0.00042959,30]
[400337299,1767388243046,-660.52,0.00042959,30]
[400337300,1767388243056,-660.52,0.00042959,30]
[400337301,1767388243065,-660.52,0.00042959,30]
[400337302,1767388243074,-660.52,0.00042959,30]
[400337303,1767388243084,-150.0,0.00042959,30]
[400337304,1767388243093,-479.71,0.00042959,30]
[400337305,1767388243102,-657.29,0.00042959,30]
[400337306,1767388243111,-500.0,0.00042972,30]
[400337307,1767388243120,-150.0,0.00042972,120]
[400337308,1767388243130,-200.0,0.00042972,7]
[400337309,1767388243139,-10000.0,0.00042972,30]
[400337310,1767388243149,-600.0,0.00042974,60]
[400337311,1767388243160,-235.84568341,0.00042975,7]
[400337312,1767388243170,-235.84568341,0.00042975,7]
[400337313,1767388243180,-151.0,0.00042982,120]
[400337314,1767388243189,-50000.0,0.00042984,40]
[400337315,1767388243200,-50000.0,0.00042984,41]
[400337316,1767388243210,-50000.0,0.00042984,42]
[400337317,1767388243219,-150.0,0.00042984,120]
[400337318,1767388243229,-11878.58724995,0.00042984,31]
[400337319,1767388243239,-45308.07477788,0.00042985,30]
[400337320,1767388243248,-695455.10236474,0.00042985,7]
[400337321,1767388243273,-3761.56884266,0.00041119,2]
[400337322,1767388243285,-1345.34,0.00041119,2]
[400337323,1767388244040,-1437.09115734,0.00041119,2]
[400337324,1767388244050,-184.9811463,0.00042,30]
[400337325,1767388244095,-355.434006,0.00042,30]
[400337326,1767388244155,-120.1048477,0.00042,30]
[400337327,1767388244166,-399.77275655,0.00042,30]
[400337328,1767388244178,-82.23724345,0.00042,30]
[400337329,1767388244188,-758.76275655,0.00042985,7]
[400337337,1767388245394,-1688.54009619,0.00042985,7]
[400337338,1767388245596,-425090.17145959,0.00042985,7]
[400337339,1767388245607,-581272.13949025,0.00042985,7]
[400337340,1767388245618,-904.64662748,0.00042985,7]
[400337341,1767388245629,-4659.54805577,0.00042985,7]
[400337342,1767388245640,-7254.81179936,0.00042985,7]
[400337343,1767388245651,-73069.30963438,0.00042985,7]
[400337344,1767388245664,-9358.27168311,0.00042985,7]
[400337345,1767388245677,-7227.35173432,0.00042985,7]